bitfinex/quotes_ETHUSD_20250724
["timestamp","ask_amount","ask_price","bid_price","bid_amount"]
[1753396505598,3.61009486,3719.0,3718.9,0.1344]
[1753396505794,3.61009486,3719.0,3718.0,0.46]
[1753396505795,2.6891859,3718.6,3718.0,0.46]
[1753396505999,4.321,3718.5,3718.1,0.476]
[1753396506352,2.68949524,3718.2,3717.6,0.46000001]
[1753396506756,4.40037061,3718.4,3718.1,0.1344]
[1753396506757,1.2219,3718.4,3718.1,0.1344]
[1753396507100,0.4301,3718.4,3718.1,0.1344]
[1753396507258,0.4301,3718.4,3717.9,0.55]
[1753396507454,0.1364,3719.0,3717.9,0.55]
[1753396507455,1.218,3719.0,3718.3,0.1344]
[1753396507692,2.68923857,3718.6,3718.3,0.1344]
[1753396507984,3.11933857,3718.6,3718.1,0.55]
[1753396508189,3.11933857,3718.6,3718.5,0.1344]
[1753396508590,0.4301,3718.6,3718.5,0.1344]
[1753396508777,2.68905629,3718.8,3718.5,0.1344]
[1753396509155,2.68914386,3718.7,3718.5,0.1344]
[1753396509354,0.7879,3719.0,3718.5,0.1344]
[1753396509563,0.002,3719.0,3718.9,0.1344]
[1753396509768,4.322,3719.0,3718.9,0.1344]
[1753396510062,2.68896716,3718.9,3718.1,0.55]
[1753396510390,3.47506022,3718.7,3718.6,0.1344]
[1753396510781,4.39426022,3718.7,3718.6,0.1344]
[1753396511411,2.68905991,3718.8,3718.6,0.1344]
[1753396511564,7.83561595,3719.0,3718.6,0.1344]
[1753396511762,2.68896752,3718.9,3718.6,0.1344]
[1753396511996,4.32,3718.8,3718.6,0.1344]
[1753396512868,0.002,3718.7,3718.6,0.1344]
[1753396513533,7.44021178,3718.7,3718.6,0.1344]
[1753396513822,4.7511,3718.7,3718.6,0.1344]
[1753396515222,7.44021178,3718.7,3718.6,0.1344]
[1753396515425,7.92931178,3718.7,3718.6,0.1344]
[1753396516291,5.2402,3718.7,3718.6,0.1344]
[1753396519006,4.7511,3718.7,3718.6,0.1344]
[1753396523021,7.44021178,3718.7,3718.6,0.1344]
[1753396523223,7.92321178,3718.7,3718.6,0.1344]
[1753396527246,5.2341,3718.7,3718.6,0.1344]
[1753396528951,7.44021178,3718.7,3718.6,0.1344]
[1753396529157,8.74431178,3718.7,3718.6,0.1344]
[1753396529949,6.0552,3718.7,3718.6,0.1344]
[1753396530858,8.74431178,3718.7,3718.6,0.1344]
[1753396531262,6.0552,3718.7,3717.8,3.0]
[1753396531557,2.68945623,3718.3,3718.2,0.1344]
[1753396531761,2.68964966,3718.0,3717.9,0.1344]
[1753396531938,2.68977444,3717.8,3717.6,1e-08]
[1753396532134,7.00083511,3717.7,3717.6,1e-08]
[1753396532442,8.74333511,3717.7,3717.6,1e-08]
[1753396534536,6.0535,3717.7,3717.6,1e-08]
[1753396535743,1.57271317,3720.2,3719.1,6.23882256]
[1753396535950,0.4486,3720.2,3719.1,7.76109595]
[1753396536260,4.309,3719.4,3719.1,7.73399595]
[1753396536748,4.309,3719.4,3719.1,7.26599595]
[1753396536945,4.309,3719.4,3719.1,3.6844]
[1753396537285,4.309,3719.4,3719.1,3.37322256]
[1753396537568,0.4506,3719.6,3719.1,3.37322256]
[1753396537770,4.311,3719.2,3719.1,3.37322256]
[1753396538070,4.311,3719.2,3719.1,0.6844]
[1753396538440,4.311,3719.2,3719.1,0.1344]
[1753396538844,4.7596,3719.2,3719.1,0.1344]
[1753396539640,5.12349851,3719.2,3718.4,2.68928925]
[1753396539849,0.8119,3719.0,3718.4,2.68929748]
[1753396540059,4.7556,3718.9,3718.8,0.1344]
[1753396540380,0.36589851,3719.2,3718.8,0.1344]
[1753396540580,1e-08,3719.6,3719.5,14.16091186]
[1753396540752,1e-08,3719.6,3719.5,15.98026573]
[1753396541098,1e-08,3719.6,3719.5,16.60976573]
[1753396541253,4.32000001,3719.6,3719.5,16.60976573]
[1753396542469,4.31700001,3719.6,3719.5,16.60976573]
[1753396543602,4.31700001,3719.6,3719.5,3.3729334]
[1753396544103,4.31700001,3719.6,3719.5,0.1344]
[1753396544696,4.31700001,3719.6,3719.5,2.8229334]
[1753396545606,0.042,3719.9,3719.5,2.8229334]
[1753396545607,1e-08,3719.8,3719.7,2.68838884]
[1753396545773,1e-08,3719.8,3719.7,11.15306758]
[1753396545960,1e-08,3719.8,3719.7,11.7631837]
[1753396546867,1e-08,3719.8,3719.7,8.6073357]
[1753396548932,1e-08,3719.8,3719.7,8.1318357]
[1753396549110,1e-08,3719.8,3719.7,8.6073357]
[1753396552639,1e-08,3719.8,3719.7,12.9073357]
[1753396555509,1e-08,3719.8,3719.7,13.0417357]
[1753396559770,1e-08,3719.8,3719.7,12.8802357]
[1753396560658,1e-08,3719.8,3719.7,13.0417357]
[1753396560860,1e-08,3719.8,3719.7,12.8802357]
[1753396561170,1e-08,3719.8,3719.7,12.4047357]
[1753396561556,1e-08,3719.8,3719.7,12.8802357]
[1753396567525,1e-08,3719.8,3719.7,12.4047357]
[1753396567687,0.44310001,3719.8,3719.7,4.3]
[1753396567883,0.44310001,3719.8,3719.7,4.85]
[1753396568421,0.44310001,3719.8,3719.7,7.53838884]
[1753396568987,0.44310001,3719.8,3719.7,4.85]
[1753396570422,0.44310001,3719.8,3719.7,7.53838884]
[1753396570819,0.44310001,3719.8,3719.7,4.85]
[1753396571316,0.44310001,3719.8,3719.5,0.001]
[1753396571525,0.90360001,3719.8,3719.5,0.551]
[1753396571683,4.7491,3719.7,3719.5,0.551]
[1753396571884,0.4431,3719.6,3719.5,0.001]
[1753396572410,0.4431,3719.6,3719.5,0.551]
[1753396572612,0.4431,3719.6,3719.5,3.2395334]
[1753396572923,0.9036,3719.6,3719.5,0.551]
[1753396573434,0.9036,3719.6,3719.5,0.001]
[1753396573734,5.2096,3719.6,3719.5,0.001]
[1753396574342,5.2096,3719.6,3719.5,3.2395334]
[1753396574343,0.4431,3719.6,3719.5,3.2395334]
[1753396574545,4.306,3719.6,3719.5,3.2395334]
[1753396574954,4.7491,3719.6,3719.5,3.2395334]
[1753396575844,5.2247,3719.6,3719.5,0.551]
[1753396577848,5.2247,3719.6,3719.5,0.6854]
[1753396578448,5.2247,3719.6,3719.5,3.3739334]
[1753396578650,5.2247,3719.6,3719.5,0.6854]
[1753396582342,6.0335,3719.6,3719.5,0.6854]
[1753396583429,6.0335,3719.6,3719.5,0.1354]
[1753396583630,6.90987493,3719.6,3719.5,0.1354]
[1753396584131,9.59833605,3719.6,3719.5,0.1354]
[1753396585867,9.59833605,3719.6,3719.5,0.001]
[1753396590869,5.29233605,3719.6,3719.5,0.001]
[1753396591074,9.59733605,3719.6,3719.5,0.001]
[1753396591943,5.1128,3719.6,3719.5,5.20745589]
[1753396592273,5.5456,3719.6,3719.5,5.20745589]
[1753396593768,1.2416,3719.6,3719.5,5.20745589]
[1753396593974,5.5456,3719.6,3719.5,5.20745589]
[1753396597180,1e-08,3719.8,3719.7,2.68838884]
[1753396597843,1e-08,3719.8,3719.7,0.1344]
[1753396597844,4.30300001,3719.8,3719.7,0.1344]
[1753396598899,0.43280001,3719.8,3719.7,0.1344]
[1753396599103,4.73580001,3719.8,3719.7,0.1344]
[1753396599471,0.43280001,3719.8,3719.7,0.1344]
[1753396599896,4.73580001,3719.8,3719.7,0.1344]
[1753396601508,5.21140001,3719.8,3719.7,0.1344]
[1753396601807,6.04390001,3719.8,3719.7,0.1344]
[1753396605029,5.61110001,3719.8,3719.7,0.1344]
[1753396605209,6.04390001,3719.8,3719.7,0.1344]
[1753396607177,6.04190001,3719.8,3719.7,0.1344]
[1753396607710,5.56630001,3719.8,3719.7,0.1344]
[1753396608609,5.13350001,3719.8,3719.7,0.1344]
[1753396608821,5.56460001,3719.8,3719.7,0.1344]
[1753396609028,1e-08,3719.8,3719.7,3.37278884]
[1753396609328,4.73210001,3719.8,3719.7,4.49966063]
[1753396609496,4.73210001,3719.8,3719.7,3.37278884]
[1753396609895,0.43110001,3719.8,3719.7,3.37278884]
[1753396610096,4.30100001,3719.8,3719.7,3.37278884]
[1753396612937,4.73210001,3719.8,3719.7,3.37278884]
[1753396613844,4.73210001,3719.8,3719.7,0.6844]
[1753396614953,5.18980001,3719.8,3719.7,0.1344]
[1753396615135,6.47678001,3719.8,3719.7,0.1344]
[1753396615648,9.16509658,3719.8,3719.7,0.1344]
[1753396616352,6.47678001,3719.8,3719.7,0.1344]
[1753396616950,9.16509658,3719.8,3719.7,0.1344]
[1753396617259,5.49590001,3719.8,3719.7,0.1344]
[1753396617406,8.18121658,3719.8,3719.7,0.1344]
[1753396617849,5.49290001,3719.8,3719.7,0.1344]
[1753396618308,8.63891658,3719.8,3719.7,0.1344]
[1753396618838,5.95060001,3719.8,3719.7,0.1344]
[1753396619021,8.18121658,3719.8,3719.7,0.1344]
[1753396619534,5.49290001,3719.8,3719.7,0.1344]
[1753396620537,1.19490001,3719.8,3719.7,0.1344]
[1753396620840,5.49290001,3719.8,3719.7,0.1344]
[1753396621543,8.63891658,3719.8,3719.7,0.1344]
[1753396622748,5.95060001,3719.8,3719.7,0.1344]
[1753396623350,8.63891658,3719.8,3719.7,0.1344]
[1753396624347,4.34091658,3719.8,3719.7,0.1344]
[1753396624646,5.94960001,3719.8,3719.7,0.1344]
[1753396625431,5.49190001,3719.8,3719.7,0.1344]
[1753396629451,1e-08,3719.8,3719.7,0.1344]
[1753396629651,4.29500001,3719.8,3719.7,0.1344]
[1753396630052,1e-08,3719.8,3719.7,0.1344]
[1753396630232,4.29500001,3719.8,3719.7,0.1344]
[1753396630841,4.29500001,3719.8,3719.7,2.82278884]
[1753396631254,4.29500001,3719.8,3719.7,0.1344]
[1753396633725,4.72610001,3719.8,3719.7,0.1344]
[1753396633926,2.68838884,3719.7,3719.6,0.001]
[1753396634121,3.57718884,3719.7,3719.6,0.1354]
[1753396634520,0.8888,3719.7,3719.6,0.1354]
[1753396635649,7.41248884,3719.7,3719.6,0.1354]
[1753396636377,7.86548884,3719.7,3719.6,0.1354]
[1753396638474,4.7241,3719.7,3719.6,0.1354]
[1753396638767,4.7231,3719.7,3719.6,0.1354]
[1753396638984,4.292,3719.7,3719.6,0.1354]
[1753396639334,1e-08,3719.8,3719.6,0.1354]
[1753396639539,4.292,3719.7,3719.6,0.1354]
[1753396645297,4.29,3719.7,3719.6,0.1354]
[1753396645817,0.47240001,3719.8,3719.6,0.1354]
[1753396645965,4.29,3719.7,3719.6,0.1354]
[1753396646289,4.289,3719.7,3719.6,0.1354]
[1753396647193,0.47240001,3719.8,3719.6,0.1354]
[1753396647391,4.289,3719.7,3719.6,0.1354]
[1753396648102,4.7614,3719.7,3719.6,0.1354]
[1753396649597,4.7604,3719.7,3719.6,0.1354]
[1753396649897,4.288,3719.7,3719.6,0.1354]
[1753396651488,4.7604,3719.7,3719.6,0.1354]
[1753396654117,5.2134,3719.7,3719.6,0.1354]
[1753396656574,4.7604,3719.7,3719.6,0.1354]
[1753396661599,4.7564,3719.7,3719.6,0.1354]
[1753396662703,4.284,3719.7,3719.6,0.1354]
[1753396662889,1e-08,3719.8,3719.7,2.68838884]
[1753396663092,1e-08,3719.8,3719.7,3.72328884]
[1753396663305,4.28300001,3719.8,3719.7,3.91167272]
[1753396663606,4.28300001,3719.8,3719.7,3.88478884]
[1753396664921,1e-08,3719.8,3719.7,3.88478884]
[1753396665231,1e-08,3719.8,3719.7,5.13153439]
[1753396666285,1e-08,3719.8,3719.7,4.97003439]
[1753396666514,1e-08,3719.8,3719.7,4.94315051]
[1753396668934,1e-08,3719.8,3719.7,4.45825051]
[1753396669167,1e-08,3719.8,3719.7,4.94155051]
[1753396675278,1e-08,3719.8,3719.7,4.96843439]
[1753396675436,1e-08,3719.8,3719.7,4.94155051]
[1753396676090,1e-08,3719.8,3719.7,12.24543439]
[1753396676370,1e-08,3719.8,3719.7,12.38005051]
[1753396678644,1e-08,3719.8,3719.7,16.19675051]
[1753396680325,1e-08,3719.8,3719.7,11.75825051]
[1753396680473,1e-08,3719.8,3719.7,16.03325051]
[1753396682976,0.002,3721.6,3720.0,0.55]
[1753396683181,0.4475,3721.5,3720.7,21.43165818]
[1753396683375,0.4475,3721.5,3720.8,3.23759406]
[1753396683581,0.4475,3721.5,3720.8,3.26447]
[1753396684102,0.4475,3721.5,3720.8,3.74777]
[1753396684304,0.4475,3721.5,3720.8,4.03026813]
[1753396684505,0.4475,3721.5,3720.8,8.30326813]
[1753396684825,0.002,3721.6,3720.8,8.30326813]
[1753396684826,0.002,3721.6,3720.8,37.07115219]
[1753396685123,0.002,3721.6,3720.8,15.73789219]
[1753396685319,0.002,3721.6,3721.2,14.87607006]
[1753396685523,0.002,3721.6,3721.2,20.36793173]
[1753396685824,0.002,3721.6,3721.2,21.01273173]
[1753396687244,0.002,3721.6,3721.2,16.57923173]
[1753396687436,0.7553,3721.6,3721.2,4.76986167]
[1753396687737,0.4495,3721.3,3721.2,10.50930517]
[1753396687907,0.4495,3721.3,3721.2,7.822]
[1753396688534,0.4495,3721.3,3721.2,10.50930517]
[1753396688735,0.002,3721.3,3721.2,10.50930517]
[1753396689299,0.002,3721.3,3721.2,10.50830517]
[1753396689496,0.002,3721.3,3721.2,12.25559312]
[1753396689904,0.002,3721.3,3721.2,12.25459312]
[1753396692047,0.002,3721.3,3721.2,7.98459312]
[1753396692250,0.002,3721.3,3721.2,12.25359312]
[1753396692414,0.002,3721.3,3721.2,10.50630517]
[1753396693052,0.002,3721.3,3721.2,10.64070517]
[1753396694850,0.002,3721.3,3721.2,0.6844]
[1753396694851,0.9452,3721.3,3721.2,0.6844]
[1753396695152,2.68736677,3721.2,3720.5,2.68775666]
[1753396695365,0.4603,3721.1,3720.6,2.6876696]
[1753396695551,0.4603,3721.1,3720.7,0.55]
[1753396695912,0.4951,3721.0,3720.7,0.55]
[1753396696252,0.4603,3720.9,3720.7,0.55]
[1753396696451,0.4951,3721.0,3720.6,0.55]
[1753396696648,0.4603,3720.8,3720.6,0.55]
[1753396697635,0.4603,3720.8,3720.7,0.55]
[1753396698918,0.4603,3720.8,3720.7,3.23766629]
[1753396699878,0.4603,3720.8,3720.7,0.55]
[1753396700186,0.4603,3720.8,3720.7,3.23766629]
[1753396700881,0.4603,3720.8,3720.7,0.55]
[1753396701279,0.4603,3720.8,3720.7,3.23766629]
[1753396705048,0.4603,3720.8,3720.7,3.37206629]
[1753396705246,0.9554,3720.8,3720.7,0.6844]
[1753396705864,0.9554,3720.8,3720.7,3.37206629]
[1753396706382,0.4603,3720.8,3720.7,3.37206629]
[1753396707386,0.4971,3721.1,3721.0,2.68744961]
[1753396707577,0.4623,3721.1,3721.0,3.23744961]
[1753396707751,0.4623,3721.1,3721.0,0.6844]
[1753396708080,0.9574,3721.1,3721.0,0.6844]
[1753396709767,0.9574,3721.1,3721.0,0.1344]
[1753396709768,4.41737738,3721.1,3721.0,0.1344]
[1753396709989,6.07528996,3721.1,3721.0,0.1344]
[1753396710792,3.38791258,3721.1,3721.0,0.1344]
[1753396711454,6.07528996,3721.1,3721.0,0.1344]
[1753396711759,1.65991258,3721.1,3721.0,0.1344]
[1753396711957,0.002,3721.4,3721.3,6.23723295]
[1753396711958,1e-08,3721.4,3721.3,6.23723295]
[1753396712165,1e-08,3721.4,3721.3,15.70568884]
[1753396712389,1e-08,3721.4,3721.3,16.32178884]
[1753396714056,1e-08,3721.4,3721.3,15.77178884]
[1753396714475,1e-08,3721.4,3721.3,16.32178884]
[1753396716883,1e-08,3721.4,3721.3,20.62178884]
[1753396717297,1e-08,3721.4,3721.3,20.46028884]
[1753396717498,1e-08,3721.4,3721.3,20.62178884]
[1753396720818,1e-08,3721.4,3721.3,20.46028884]
[1753396721018,1e-08,3721.4,3721.3,20.62178884]
[1753396722030,1e-08,3721.4,3721.3,20.75618884]
[1753396723915,1e-08,3721.4,3721.3,20.75218884]
[1753396724324,1e-08,3721.4,3721.3,20.13608884]
[1753396724616,1e-08,3721.4,3721.3,20.59068884]
[1753396726659,1e-08,3721.4,3721.3,16.33268884]
[1753396726832,1e-08,3721.4,3721.3,20.59068884]
[1753396728942,1e-08,3721.4,3721.3,20.13608884]
[1753396729123,1e-08,3721.4,3721.3,20.63058884]
[1753396732058,1e-08,3721.4,3721.3,20.79208884]
[1753396732851,1e-08,3721.4,3721.3,20.63058884]
[1753396733061,1e-08,3721.4,3721.3,11.16613295]
[1753396733226,0.93600001,3721.4,3721.3,10.12163295]
[1753396733427,0.93600001,3721.4,3721.3,14.37763295]
[1753396733823,0.44030001,3721.4,3721.3,14.24323295]
[1753396734029,0.44030001,3721.4,3721.3,14.79323295]
[1753396734726,1e-08,3721.4,3721.3,14.79323295]
[1753396741474,0.44030001,3721.4,3721.3,14.79323295]
[1753396741883,1.76470001,3721.4,3721.3,10.49023295]
[1753396742028,1.76470001,3721.4,3721.2,2.68729124]
[1753396742234,0.82870001,3721.4,3721.3,4.253]
[1753396742636,1.76470001,3721.4,3721.3,4.253]
[1753396742863,1.38136678,3721.4,3720.6,4.3]
[1753396743080,0.7862,3721.2,3720.5,4.253]
[1753396743295,0.7862,3720.9,3720.5,4.253]
[1753396743590,0.936,3720.8,3720.4,4.253]
[1753396743882,0.936,3720.7,3720.5,0.55]
[1753396744051,0.7862,3720.9,3720.7,0.1344]
[1753396744249,0.7862,3720.9,3720.7,0.55]
[1753396744438,0.7862,3720.9,3720.8,0.1344]
[1753396745281,1.2265,3720.9,3720.8,0.1344]
[1753396745480,1.7222,3720.9,3720.8,0.1344]
[1753396746668,2.1631591,3720.9,3720.8,0.1344]
[1753396747032,4.85068093,3720.9,3720.8,0.1344]
[1753396753838,0.13440001,3721.4,3720.8,0.6844]
[1753396754041,1e-08,3721.4,3721.3,11.44368884]
[1753396754279,1e-08,3721.4,3721.3,12.33821603]
[1753396754476,1e-08,3721.4,3721.3,11.93818884]
[1753396755079,1e-08,3721.4,3721.3,11.44368884]
[1753396755380,1e-08,3721.4,3721.3,12.90623992]
[1753396756282,1e-08,3721.4,3721.3,13.39263992]
[1753396756580,1e-08,3721.4,3721.3,17.64363992]
[1753396756983,1e-08,3721.4,3721.3,11.95078403]
[1753396757182,1e-08,3721.4,3721.3,7.69978403]
[1753396758858,1.75210001,3721.4,3721.2,2.68724443]
[1753396759058,0.9407,3721.3,3721.2,2.68724443]
[1753396759268,0.9407,3721.3,3721.2,3.0]
[1753396759467,0.9407,3721.3,3721.0,2.68743708]
[1753396759652,0.9407,3721.2,3721.1,3.0]
[1753396759852,0.9407,3721.2,3721.1,3.55]
[1753396760883,0.9407,3721.2,3721.1,3.23737738]
[1753396761782,0.9407,3721.2,3721.1,3.55]
[1753396761982,0.81140001,3721.4,3720.8,3.0]
[1753396762285,0.81140001,3721.4,3721.3,3.23723295]
[1753396762286,1.25460001,3721.4,3721.3,3.23723295]
[1753396762668,1.75210001,3721.4,3721.3,3.23723295]
[1753396763994,1.75210001,3721.4,3721.3,3.37163295]
[1753396764580,1.75210001,3721.4,3721.3,0.6844]
[1753396765490,1.75210001,3721.4,3721.3,3.37163295]
[1753396771423,1.75210001,3721.4,3721.3,3.37263295]
[1753396773405,1e-08,3721.4,3721.3,3.97863367]
[1753396773696,1e-08,3721.4,3721.3,4.46503367]
[1753396774635,1e-08,3721.4,3721.3,3.97863367]
[1753396775796,1e-08,3721.4,3721.3,1.29140072]
[1753396775996,1.72350001,3721.4,3721.3,0.6854]
[1753396776232,1.72350001,3721.4,3721.3,3.37263295]
[1753396777129,1.72350001,3721.4,3721.3,0.6854]
[1753396778198,1.72350001,3721.4,3721.3,0.1354]
[1753396778199,8.65666075,3721.4,3721.3,0.1354]
[1753396778517,9.79123076,3721.4,3721.3,0.1354]
[1753396778895,9.29373076,3721.4,3721.3,0.1354]
[1753396779094,9.79123076,3721.4,3721.3,0.1354]
[1753396780327,9.79123076,3721.4,3721.3,0.001]
[1753396784030,15.13208665,3721.4,3721.3,1e-08]
[1753396784335,1e-08,3721.4,3721.3,11.93008885]
[1753396784631,1e-08,3721.4,3721.3,12.09158885]
[1753396787299,0.042,3721.9,3721.8,6.23687194]
[1753396787525,0.042,3721.9,3721.8,16.6047113]
[1753396787836,0.042,3721.9,3721.8,17.2607113]
[1753396788740,0.042,3721.9,3721.8,17.0992113]
[1753396788931,0.042,3721.9,3721.8,12.3357113]
[1753396789122,0.042,3721.9,3721.8,11.89275541]
[1753396792064,0.042,3721.9,3721.8,7.62375541]
[1753396792342,0.042,3721.9,3721.8,11.88675541]
[1753396792519,0.042,3721.9,3721.8,7.62375541]
[1753396792908,0.042,3721.9,3721.8,11.88475541]
[1753396794129,0.042,3721.9,3721.8,12.01915541]
[1753396796938,0.042,3721.9,3721.8,7.75815541]
[1753396797124,0.042,3721.9,3721.8,12.01115541]
[1753396799959,0.042,3721.9,3721.8,16.31115541]
[1753396806778,0.042,3721.9,3721.8,7.26365541]
[1753396806977,0.9577,3721.9,3721.8,10.61527194]
[1753396808988,0.5036,3721.9,3721.8,10.61527194]
[1753396809342,0.9577,3721.9,3721.8,10.61527194]
[1753396810572,0.9577,3721.9,3721.8,6.37127194]
[1753396810762,0.9577,3721.9,3721.8,10.61527194]
[1753396810959,0.9577,3721.9,3721.8,6.37127194]
[1753396811274,0.9577,3721.9,3721.8,10.61527194]
[1753396812786,0.9577,3721.9,3721.8,3.6844]
[1753396812970,0.9577,3721.9,3721.8,4.9284]
[1753396813348,0.9577,3721.9,3721.8,0.6844]
[1753396813686,0.9577,3721.9,3721.8,4.9284]
[1753396814098,0.9577,3721.9,3721.8,0.1344]
[1753396814262,1.7096,3721.9,3721.8,0.1344]
[1753396814470,2.1496269,3721.9,3721.8,0.1344]
[1753396814959,4.83642665,3721.9,3721.8,0.1344]
[1753396817103,2.1496269,3721.9,3721.8,0.1344]
[1753396817803,4.83642665,3721.9,3721.8,0.1344]
[1753396818994,4.84052665,3721.9,3721.8,0.1344]
[1753396819566,9.08352665,3721.9,3721.8,0.1344]
[1753396820167,9.08352665,3721.9,3721.3,1e-08]
[1753396820168,2.68716074,3721.4,3721.3,1e-08]
[1753396820366,3.50476074,3721.4,3721.3,1e-08]
[1753396820569,4.55673849,3721.4,3721.3,0.13440001]
[1753396820780,5.01493849,3721.4,3721.3,0.13440001]
[1753396821471,9.25793849,3721.4,3721.3,0.13440001]
[1753396822725,9.25793849,3721.4,3721.3,1e-08]
[1753396823070,12.25793849,3721.4,3721.3,1e-08]
[1753396823488,2.68752183,3720.9,3720.8,0.1354]
[1753396823669,8.26311739,3720.9,3720.8,0.1354]
[1753396823981,9.15411739,3720.9,3720.8,0.1354]
[1753396824922,9.15411739,3720.9,3720.8,0.001]
[1753396825525,12.15411739,3720.9,3720.8,0.001]
[1753396825839,12.15411739,3720.9,3720.5,0.001]
[1753396825840,6.50013853,3720.6,3720.5,0.001]
[1753396826039,12.64575906,3720.6,3720.5,0.001]
[1753396826398,13.53675906,3720.6,3720.5,0.001]
[1753396826742,2.68727167,3721.3,3720.5,0.001]
[1753396826743,0.042,3721.9,3721.8,2.68687194]
[1753396826943,0.042,3721.9,3721.8,8.43519046]
[1753396827101,0.042,3721.9,3721.8,9.04909046]
[1753396827302,0.042,3721.9,3721.8,9.98477273]
[1753396827546,0.042,3721.9,3721.8,11.26809736]
[1753396829133,4.429,3721.9,3721.8,6.06977884]
[1753396829702,0.042,3721.9,3721.8,6.06977884]
[1753396830024,0.042,3721.9,3721.8,1.96772463]
[1753396830202,0.042,3721.9,3721.8,3.37127194]
[1753396835941,0.002,3722.1,3721.8,6.39814065]
[1753396836118,0.002,3722.1,3722.0,3.23672756]
[1753396836310,0.002,3722.1,3722.0,3.37112756]
[1753396836506,0.002,3722.1,3722.0,3.85062756]
[1753396836718,0.002,3722.1,3722.0,5.61050904]
[1753396838925,0.002,3722.1,3722.0,5.13100904]
[1753396839230,0.002,3722.1,3722.0,5.63737631]
[1753396839430,0.002,3722.1,3722.0,5.61050904]
[1753396843151,0.002,3722.1,3722.0,8.61050904]
[1753396849059,0.002,3722.1,3722.0,8.59320904]
[1753396849261,0.002,3722.1,3722.0,13.78965838]
[1753396850170,0.002,3722.1,3722.0,18.08965838]
[1753396851330,0.002,3722.1,3722.0,18.25115838]
[1753396851733,0.002,3722.1,3722.0,18.08965838]
[1753396854565,0.002,3722.1,3722.0,17.62745838]
[1753396854751,0.4428,3722.1,3722.0,17.62745838]
[1753396856248,0.8973,3722.1,3722.0,11.5675769]
[1753396857665,0.4428,3722.1,3722.0,11.5675769]
[1753396862768,0.002,3722.1,3722.0,11.5675769]
[1753396867889,0.002,3722.1,3722.0,12.0297769]
[1753396868088,0.002,3722.1,3722.0,16.3227769]
[1753396868397,0.002,3722.1,3722.0,18.81533577]
[1753396868557,0.002,3722.1,3722.0,18.65383577]
[1753396869787,0.002,3722.1,3722.0,18.19163577]
[1753396870487,0.002,3722.1,3722.0,13.89863577]
[1753396870787,0.4428,3722.1,3722.0,18.18963577]
[1753396871893,0.002,3722.1,3722.0,14.36083577]
[1753396874014,0.002,3722.1,3722.0,18.82233577]
[1753396874630,0.002,3722.1,3722.0,18.66083577]
[1753396878966,0.002,3722.1,3722.0,18.69573577]
[1753396881333,0.002,3722.1,3722.0,18.19863577]
[1753396882223,0.4513,3722.1,3722.0,18.19863577]
[1753396882422,0.9323,3722.1,3722.0,22.46563577]
[1753396882683,0.9323,3722.1,3722.0,18.16563577]
[1753396883384,0.9323,3722.1,3722.0,13.89863577]
[1753396886566,0.002,3722.1,3722.0,13.89863577]
[1753396887105,0.002,3722.1,3722.0,14.39573577]
[1753396887850,0.002,3722.7,3722.1,6.23665538]
[1753396888069,0.002,3722.7,3722.1,12.45670312]
[1753396888638,0.002,3722.7,3722.1,16.75670312]
[1753396889238,0.4493,3722.6,3722.1,16.75670312]
[1753396889462,0.9303,3722.6,3722.1,16.25960312]
[1753396889649,0.481,3722.6,3722.1,16.25960312]
[1753396889850,0.4493,3722.5,3722.1,16.25960312]
[1753396890269,0.9303,3722.5,3722.1,16.25960312]
[1753396894094,0.9323,3722.2,3722.1,12.00360312]
[1753396894376,0.4513,3722.2,3722.1,14.79265538]
[1753396894566,0.4513,3722.2,3722.1,10.49265538]
[1753396896656,0.9323,3722.2,3722.1,10.49265538]
[1753396896976,0.9323,3722.2,3722.1,7.806]
[1753396897275,0.9323,3722.2,3722.1,10.49265538]
[1753396899079,0.9323,3722.2,3722.1,6.23665538]
[1753396899745,0.9323,3722.2,3722.1,3.55]
[1753396900480,1.6957,3722.2,3721.9,0.001]
[1753396900663,0.9303,3722.1,3721.9,0.001]
[1753396901178,1.89776044,3722.2,3721.9,0.001]
[1753396901478,0.9303,3722.1,3721.9,0.001]
[1753396901839,0.9303,3722.0,3721.9,0.001]
[1753396905885,0.9303,3722.0,3721.9,0.551]
[1753396906089,0.9303,3722.0,3721.9,0.001]
[1753396906881,0.9303,3722.0,3721.9,3.23779975]
[1753396907080,0.9303,3722.0,3721.9,0.551]
[1753396907796,0.7654,3722.2,3722.1,3.23665538]
[1753396907983,0.002,3722.2,3722.1,8.43310472]
[1753396908583,0.002,3722.7,3722.1,19.50832872]
[1753396908768,0.9288,3723.6,3722.9,3.23602974]
[1753396908973,0.9288,3723.6,3722.6,11.43274386]
[1753396908974,0.4728,3723.6,3723.5,8.43209456]
[1753396909281,0.9288,3723.6,3723.5,8.43209456]
[1753396909485,0.002,3723.7,3723.6,3.2355731]
[1753396909699,0.002,3723.7,3723.6,8.12326901]
[1753396910002,0.002,3723.7,3723.6,8.57381328]
[1753396910196,0.002,3723.7,3723.6,8.09641328]
[1753396910398,0.002,3723.7,3723.6,8.23081328]
[1753396911003,0.4748,3723.7,3723.6,12.48581328]
[1753396911701,0.9308,3723.7,3723.6,12.48581328]
[1753396911871,0.9308,3723.7,3723.6,10.6249731]
[1753396912793,0.9308,3723.7,3723.6,7.9394]
[1753396913000,0.9308,3723.7,3723.6,10.6249731]
[1753396913804,0.9308,3723.7,3723.6,7.9394]
[1753396914100,0.9308,3723.7,3723.6,10.6249731]
[1753396914303,0.9308,3723.7,3723.6,12.4756854]
[1753396914464,0.002,3723.7,3723.6,12.4756854]
[1753396914902,1.52914221,3724.6,3723.9,2.68535674]
[1753396915108,1.7457,3725.4,3724.8,3.2347079]
[1753396915416,0.456,3725.2,3724.8,11.33331108]
[1753396915582,0.9288,3725.2,3724.8,11.30646401]
[1753396916087,0.8169,3725.4,3724.8,11.30646401]